bitfinex-derivatives/quotes_BTCF0:USTF0_20241015
["timestamp","ask_amount","ask_price","bid_price","bid_amount"]
[1729001922635,0.3608,67170.0,67164.0,0.1936]
[1729001922836,0.013,67180.0,67169.0,0.4]
[1729001923025,0.013,67180.0,67175.0,0.074442]
[1729001923230,0.013,67180.0,67170.0,0.3608]
[1729001923231,0.013,67180.0,67170.0,0.58519537]
[1729001923424,0.013,67180.0,67179.0,0.001]
[1729001924029,0.074441,67177.0,67172.0,0.4]
[1729001924240,0.074441,67177.0,67175.0,0.001]
[1729001924428,0.013,67180.0,67175.0,0.001]
[1729001924630,0.013,67180.0,67175.0,0.075443]
[1729001924826,0.074442,67176.0,67175.0,0.001]
[1729001925440,0.074473,67149.0,67147.0,0.3608]
[1729001925633,0.074473,67148.0,67147.0,0.3608]
[1729001926040,0.074473,67148.0,67147.0,0.22255355]
[1729001926339,0.074473,67148.0,67140.0,0.22255355]
[1729001926540,0.074473,67148.0,67144.0,0.22255355]
[1729001926736,0.074473,67148.0,67141.0,0.07448]
[1729001926935,0.088473,67148.0,67141.0,0.07448]
[1729001927129,0.074475,67146.0,67145.0,0.2232593]
[1729001927332,0.4,67146.0,67133.0,0.1933]
[1729001927542,0.074482,67140.0,67133.0,0.1933]
[1729001927732,0.074482,67140.0,67137.0,0.2232593]
[1729001928035,0.3608,67141.0,67133.0,0.1933]
[1729001928343,0.014,67148.0,67133.0,0.1933]
[1729001928344,0.014,67148.0,67142.0,0.074479]
[1729001928636,0.014,67148.0,67144.0,0.4]
[1729001928938,0.015,67148.0,67144.0,0.4]
[1729001929239,0.36292001,67163.0,67146.0,0.3608]
[1729001929540,0.36292001,67163.0,67147.0,0.3608]
[1729001929541,0.014,67148.0,67147.0,0.3608]
[1729001929838,0.015,67148.0,67147.0,0.58328136]
[1729001930035,0.3608,67163.0,67147.0,0.58328136]
[1729001930036,0.3608,67163.0,67147.0,0.3608]
[1729001930237,0.3608,67163.0,67153.0,0.074467]
[1729001930431,0.3618,67163.0,67147.0,0.58294738]
[1729001930629,0.074465,67155.0,67154.0,0.22214738]
[1729001930826,0.074465,67155.0,67152.0,0.22214738]
[1729001931037,0.4,67160.0,67148.0,0.22214738]
[1729001931237,0.3618,67163.0,67154.0,0.22320595]
[1729001931439,0.437257,67163.0,67152.0,0.074469]
[1729001931634,0.3628,67163.0,67155.0,0.22320595]
[1729001931835,0.074458,67162.0,67155.0,0.22320595]
[1729001932037,0.074458,67162.0,67151.0,0.22299781]
[1729001932235,0.074458,67162.0,67148.0,0.22299781]
[1729001932236,0.00212001,67171.0,67170.0,0.074449]
[1729001932440,0.074441,67177.0,67161.0,0.3608]
[1729001932641,0.3608,67171.0,67162.0,0.4]
[1729001932833,0.3608,67178.0,67171.0,0.074447]
[1729001933033,0.3608,67178.0,67167.0,0.7608]
[1729001933341,0.074442,67176.0,67172.0,0.22367893]
[1729001933539,0.4,67174.0,67168.0,0.22367893]
[1729001933735,0.4,67174.0,67167.0,0.3608]
[1729001933936,0.074443,67175.0,67167.0,0.3608]
[1729001934133,0.074443,67175.0,67163.0,0.269256]
[1729001934134,0.074446,67173.0,67163.0,0.269256]
[1729001934438,0.7608,67168.0,67164.0,0.22198607]
[1729001934643,0.3608,67167.0,67164.0,0.22198607]
[1729001934840,0.3608,67167.0,67160.0,0.07446]
[1729001935044,0.3608,67167.0,67162.0,0.001]
[1729001935241,0.074456,67163.0,67162.0,0.001]
[1729001935748,0.4,67151.0,67142.0,0.074479]
[1729001935944,0.4,67151.0,67141.0,0.5405]
[1729001935945,0.4,67157.0,67145.0,0.074476]
[1729001936145,0.4,67157.0,67141.0,0.5405]
[1729001936146,0.3608,67150.0,67141.0,0.5405]
[1729001936446,0.4,67157.0,67146.0,0.22386547]
[1729001936643,0.074469,67152.0,67146.0,0.22386547]
[1729001936841,0.074464,67156.0,67147.0,0.074474]
[1729001937040,0.074464,67156.0,67148.0,0.074473]
[1729001937242,0.3608,67158.0,67152.0,0.074468]
[1729001937436,0.7216,67158.0,67152.0,0.074468]
[1729001937641,0.7216,67158.0,67141.0,0.1797]
[1729001937642,0.074464,67157.0,67147.0,0.074473]
[1729001937852,0.001,67151.0,67150.0,0.074471]
[1729001938146,0.72384001,67158.0,67151.0,0.22327296]
[1729001938147,0.7216,67158.0,67151.0,0.22327296]
[1729001938336,0.7216,67158.0,67152.0,0.074468]
[1729001938543,0.7216,67158.0,67149.0,0.002]
[1729001938742,0.7226,67158.0,67153.0,0.22327296]
[1729001938938,0.7226,67158.0,67156.0,0.074464]
[1729001939142,0.7226,67158.0,67152.0,0.22465038]
[1729001939346,0.797063,67158.0,67154.0,0.22365038]
[1729001939541,0.797063,67158.0,67153.0,0.22365038]
[1729001939846,0.797063,67158.0,67152.0,0.001]
[1729001939847,0.3618,67158.0,67155.0,0.22365038]
[1729001940046,0.3618,67158.0,67154.0,0.22419576]
[1729001940047,0.001,67158.0,67154.0,0.22419576]
[1729001940248,0.001,67158.0,67157.0,0.074463]
[1729001940543,0.074463,67157.0,67155.0,0.22419576]
[1729001940736,0.074464,67156.0,67155.0,0.22419576]
[1729001940937,0.074468,67153.0,67152.0,0.001]
[1729001941141,0.435268,67153.0,67152.0,0.001]
[1729001941549,0.435268,67153.0,67152.0,0.002]
[1729001941747,0.435268,67153.0,67152.0,0.001]
[1729001941948,0.435268,67153.0,67139.0,0.18933034]
[1729001942244,0.074481,67141.0,67140.0,0.22351028]
[1729001942445,0.435281,67141.0,67140.0,0.22351028]
[1729001942644,0.435281,67141.0,67131.0,0.3608]
[1729001942645,0.074486,67137.0,67131.0,0.3608]
[1729001942951,0.074491,67132.0,67131.0,0.3608]
[1729001943144,0.435291,67132.0,67128.0,0.01106276]
[1729001943347,0.3608,67131.0,67117.0,0.1949]
[1729001943540,0.3608,67123.0,67117.0,0.1949]
[1729001943749,0.3608,67123.0,67118.0,0.22360936]
[1729001943953,0.074503,67122.0,67118.0,0.22360936]
[1729001944157,0.3608,67123.0,67118.0,0.22360936]
[1729001944158,0.074505,67119.0,67118.0,0.22360936]
[1729001944339,0.435301,67123.0,67118.0,0.22360936]
[1729001944749,0.3608,67123.0,67118.0,0.22360936]
[1729001944955,0.3608,67123.0,67120.0,0.074504]
[1729001945246,0.3608,67123.0,67121.0,0.22414259]
[1729001945247,0.074502,67122.0,67121.0,0.22414259]
[1729001945547,0.3608,67123.0,67120.0,0.074503]
[1729001946048,0.3608,67123.0,67122.0,0.074502]
[1729001946439,0.3608,67123.0,67122.0,0.29748544]
[1729001946751,0.435301,67123.0,67122.0,0.22298344]
[1729001946951,0.835301,67123.0,67122.0,0.22298344]
[1729001947152,0.835301,67123.0,67107.0,0.1938]
[1729001947153,0.7608,67123.0,67107.0,0.1938]
[1729001947340,0.3608,67108.0,67107.0,0.1938]
[1729001947543,0.3608,67116.0,67108.0,0.22457689]
[1729001947852,0.3608,67116.0,67107.0,0.22457689]
[1729001947853,0.074517,67108.0,67107.0,0.22457689]
[1729001948150,0.074531,67097.0,67090.0,0.278537]
[1729001948451,0.3608,67093.0,67090.0,0.204]
[1729001948950,0.3608,67093.0,67091.0,0.22226807]
[1729001949252,0.3608,67093.0,67092.0,0.074535]
[1729001949447,0.3608,67093.0,67091.0,0.22226807]
[1729001949646,0.3608,67093.0,67090.0,0.204]
[1729001949647,0.3608,67093.0,67092.0,0.22398136]
[1729001949849,0.3608,67093.0,67090.0,0.001]
[1729001949850,0.796134,67093.0,67090.0,0.001]
[1729001950350,0.074534,67093.0,67090.0,0.001]
[1729001950658,0.3608,67098.0,67090.0,0.075537]
[1729001950949,0.014,67093.0,67090.0,0.076537]
[1729001951152,0.014,67093.0,67091.0,0.074536]
[1729001951353,0.028,67093.0,67091.0,0.001]
[1729001951749,0.074549,67080.0,67069.0,0.3608]
[1729001952051,0.3608,67075.0,67072.0,0.22373702]
[1729001952444,0.3608,67075.0,67071.0,0.074558]
[1729001952749,0.3608,67081.0,67078.0,0.07455]
[1729001952952,0.4,67079.0,67071.0,0.22373702]
[1729001953258,0.3608,67075.0,67062.0,0.08570809]
[1729001953551,0.3608,67067.0,67059.0,0.4]
[1729001953753,0.3608,67067.0,67062.0,0.2247062]
[1729001953954,0.3608,67067.0,67059.0,0.4]
[1729001953955,0.3608,67067.0,67059.0,0.074572]
[1729001954143,0.074567,67064.0,67063.0,0.22265374]
[1729001954343,0.3608,67067.0,67063.0,0.22265374]
[1729001954547,0.3608,67067.0,67064.0,0.074566]
[1729001954749,0.3748,67067.0,67064.0,0.22265374]
[1729001954946,0.074564,67066.0,67064.0,0.22265374]
[1729001955251,0.074564,67066.0,67059.0,0.001]
[1729001955450,0.72372001,67067.0,67057.0,0.07469875]
[1729001955643,0.028,67067.0,67063.0,0.002]
[1729001955845,0.028,67067.0,67065.0,0.074565]
[1729001956258,0.028,67067.0,67066.0,0.58431732]
[1729001956259,0.014,67067.0,67066.0,0.58431732]
[1729001957259,0.3608,67077.0,67070.0,0.074559]
[1729001957454,0.3608,67077.0,67066.0,0.98431732]
[1729001957455,0.3608,67077.0,67072.0,0.474557]
[1729001957752,0.3608,67077.0,67073.0,0.22467158]
[1729001958346,0.3608,67077.0,67076.0,0.074553]
[1729001958759,0.3608,67077.0,67072.0,0.7608]
[1729001958760,0.3748,67077.0,67072.0,0.7618]
[1729001959151,0.05,77750.0,67072.0,0.7618]
[1729001959152,0.074538,67090.0,67076.0,0.58360251]
[1729001959357,0.4,67080.0,67073.0,0.22280251]
[1729001959556,0.4,67075.0,67070.0,0.3608]
[1729001959757,0.3608,67071.0,67066.0,0.001]
[1729001959960,0.074563,67067.0,67066.0,0.001]
[1729001960253,0.064563,67067.0,67066.0,0.001]
[1729001960447,0.4,67068.0,67057.0,0.3608]
[1729001960646,0.3608,67064.0,67057.0,0.3608]
[1729001960846,0.3608,67064.0,67058.0,0.074573]
[1729001961256,0.3608,67064.0,67051.0,0.58509246]
[1729001961567,0.3608,67064.0,67051.0,0.3608]
[1729001961861,0.074568,67063.0,67057.0,0.001]
[1729001962056,0.3618,67064.0,67057.0,0.001]
[1729001962360,0.3608,67065.0,67051.0,0.3608]
[1729001962653,0.3608,67065.0,67051.0,0.3618]
[1729001962654,0.001,67064.0,67051.0,0.3618]
[1729001963051,0.3608,67065.0,67057.0,0.001]
[1729001963052,0.074569,67062.0,67057.0,0.001]
[1729001963252,0.07457,67061.0,67057.0,0.001]
[1729001963452,0.07457,67061.0,67058.0,0.001]
[1729001963760,0.3608,67059.0,67058.0,0.001]
[1729001963952,0.435372,67059.0,67058.0,0.001]
[1729001964155,0.3608,67059.0,67057.0,0.001]
[1729001964451,0.074573,67058.0,67057.0,0.002]
[1729001964953,0.074573,67058.0,67057.0,0.001]
[1729001965153,0.449372,67059.0,67058.0,0.001]
[1729001965355,0.088572,67059.0,67058.0,0.001]
[1729001965654,0.015,67059.0,67058.0,0.001]
[1729001965853,0.015,67059.0,67058.0,0.6594676]
[1729001966057,0.074558,67072.0,67058.0,0.3618]
[1729001966251,0.3608,67073.0,67064.0,0.3608]
[1729001966450,0.3608,67073.0,67067.0,0.474563]
[1729001966752,0.3608,67073.0,67068.0,0.22503719]
[1729001966949,0.474561,67069.0,67068.0,0.22503719]
[1729001967157,0.4,67069.0,67059.0,0.1964]
[1729001967359,0.3608,67073.0,67065.0,0.3608]
[1729001967556,0.3608,67073.0,67070.0,0.07456]
[1729001967762,0.3748,67073.0,67070.0,0.07456]
[1729001968066,0.3748,67073.0,67072.0,0.074557]
[1729001968067,0.014,67073.0,67072.0,0.074557]
[1729001968356,0.074539,67089.0,67081.0,0.074547]
[1729001968561,0.271505,67120.0,67072.0,0.22260305]
[1729001968562,0.4,67084.0,67072.0,0.22260305]
[1729001968753,0.014,67073.0,67071.0,0.3608]
[1729001968949,0.014,67073.0,67072.0,0.29716005]
[1729001969155,0.074547,67082.0,67076.0,0.074553]
[1729001969356,0.074547,67082.0,67072.0,0.22260305]
[1729001969357,0.074547,67082.0,67074.0,0.4]
[1729001969556,0.4,67087.0,67073.0,0.074556]
[1729001969762,0.074545,67084.0,67075.0,0.22255102]
[1729001969953,0.3608,67091.0,67074.0,0.4]
[1729001970152,0.3608,67091.0,67083.0,0.3608]
[1729001970352,0.3608,67091.0,67077.0,0.3608]
[1729001970353,0.3608,67084.0,67081.0,0.001]
[1729001970561,0.074546,67082.0,67081.0,0.001]
[1729001970761,0.521746,67082.0,67081.0,0.001]
[1729001970966,1.121746,67082.0,67081.0,0.001]
[1729001971264,1.121746,67082.0,67074.0,0.001]
[1729001971452,0.835354,67075.0,67074.0,0.001]
[1729001971650,0.835354,67075.0,67074.0,0.015]
[1729001971860,0.435354,67075.0,67074.0,0.015]
[1729001972053,0.3608,67075.0,67074.0,0.001]
[1729001972263,0.3608,67075.0,67074.0,0.075555]
[1729001972564,0.001,67082.0,67074.0,0.001]
[1729001972761,0.27554,67093.0,67080.0,0.074548]
[1729001973271,0.4,67082.0,67074.0,0.014]
[1729001973457,0.474554,67075.0,67074.0,0.014]
[1729001973765,0.074554,67075.0,67074.0,0.014]
[1729001975066,0.074554,67075.0,67070.0,0.435359]
[1729001975361,0.4,67086.0,67071.0,0.22357422]
[1729001975362,0.07455,67079.0,67071.0,0.22357422]
[1729001975562,0.3608,67090.0,67071.0,0.22357422]
[1729001975563,0.3608,67082.0,67071.0,0.22357422]
[1729001975761,0.3608,67090.0,67076.0,0.7608]
[1729001975954,0.074539,67089.0,67084.0,0.074543]
[1729001976156,0.074539,67089.0,67077.0,0.3669]
[1729001976157,0.074539,67089.0,67085.0,0.074543]
[1729001976566,0.3608,67090.0,67077.0,0.40971755]
[1729001976567,0.4,67088.0,67077.0,0.40971755]
[1729001976764,0.3608,67090.0,67083.0,0.074545]
[1729001976765,0.074539,67089.0,67083.0,0.074545]
[1729001976969,0.3608,67098.0,67078.0,0.04281755]
[1729001976970,0.43533,67098.0,67092.0,0.074534]
[1729001977262,0.43533,67098.0,67089.0,0.074538]
[1729001977263,0.074533,67095.0,67089.0,0.074538]
[1729001977469,0.074532,67095.0,67092.0,0.074535]
[1729001977655,0.3608,67098.0,67088.0,0.40361755]
[1729001977858,0.3608,67098.0,67092.0,0.074535]
[1729001977859,0.43533,67098.0,67092.0,0.074535]
[1729001978061,0.3608,67098.0,67094.0,0.074533]
[1729001978266,0.3608,67098.0,67088.0,0.3608]
[1729001978267,0.3608,67098.0,67092.0,0.014]
[1729001978673,0.3608,67098.0,67097.0,0.07453]
[1729001978967,0.3608,67124.0,67097.0,0.84660407]
[1729001979157,0.4,67126.0,67119.0,0.3608]
[1729001979368,0.08532077,67132.0,67119.0,0.3608]
[1729001979369,0.074502,67122.0,67119.0,0.3608]
[1729001979566,0.435292,67131.0,67119.0,0.3608]
[1729001979763,0.435292,67131.0,67117.0,0.3608]
[1729001979764,0.4,67120.0,67117.0,0.3608]
[1729001979954,0.074506,67118.0,67117.0,0.3608]
[1729001981268,0.074506,67118.0,67117.0,0.435307]
[1729001981463,0.074503,67121.0,67117.0,0.3608]
[1729001981667,0.074498,67126.0,67122.0,0.074501]
[1729001981867,0.76292001,67131.0,67123.0,0.3608]
[1729001982164,0.0745,67124.0,67123.0,0.3608]
[1729001982560,0.0745,67124.0,67123.0,0.435301]
[1729001982865,0.074496,67128.0,67126.0,0.074496]
[1729001983064,0.002,67131.0,67130.0,0.074493]
[1729001983367,0.07448,67143.0,67140.0,0.074482]
[1729001983671,0.074472,67149.0,67145.0,0.074476]
[1729001983862,0.7608,67161.0,67149.0,0.074471]
[1729001984068,0.074465,67155.0,67154.0,0.3608]
[1729001984269,0.074465,67155.0,67154.0,0.435266]
[1729001984771,0.074449,67171.0,67158.0,0.074461]
[1729001984969,0.074459,67161.0,67159.0,0.07446]
[1729001985167,0.01130512,67171.0,67161.0,0.074458]
[1729001985373,0.074465,67155.0,67154.0,0.3608]
[1729001985580,0.074465,67155.0,67154.0,0.436266]
[1729001985767,0.074465,67155.0,67154.0,0.3618]
[1729001986069,0.074465,67155.0,67146.0,0.3608]
[1729001986070,0.074474,67147.0,67146.0,0.3608]
[1729001986567,0.074474,67147.0,67136.0,0.184]
[1729001986568,0.074479,67143.0,67139.0,0.5514]
[1729001986868,0.074482,67140.0,67139.0,0.3608]
[1729001987964,0.074482,67140.0,67139.0,0.001]
[1729001988969,0.074482,67140.0,67139.0,0.002]
[1729001989170,0.435282,67140.0,67139.0,0.002]
[1729001989368,1.482122,67140.0,67125.0,0.3608]
[1729001989562,0.474497,67126.0,67125.0,0.3608]
[1729001991272,0.4,67126.0,67109.0,0.3608]
[1729001991474,0.3608,67128.0,67109.0,0.3608]
[1729001991475,0.074512,67113.0,67109.0,0.3608]
[1729001991772,0.074512,67113.0,67101.0,0.5383]
[1729001991773,0.474512,67113.0,67107.0,0.3608]
[1729001991977,0.074524,67102.0,67101.0,0.1775]
[1729001992272,0.7608,67108.0,67099.0,0.3608]
[1729001992465,0.074526,67100.0,67099.0,0.3608]
[1729001993268,0.074526,67100.0,67091.0,0.3608]
[1729001993269,0.074534,67094.0,67091.0,0.3608]
[1729001993573,0.074535,67092.0,67091.0,0.3608]
[1729001995572,0.074535,67092.0,67091.0,0.3618]
[1729001995573,0.075535,67092.0,67091.0,0.3618]
[1729001996584,0.074535,67092.0,67091.0,0.3608]
[1729001996776,0.075535,67092.0,67091.0,0.3618]
[1729001997272,0.436335,67092.0,67091.0,0.001]
[1729001997683,0.074542,67086.0,67085.0,0.3608]
[1729001997882,0.474542,67086.0,67085.0,0.3608]
[1729001998272,0.074542,67086.0,67085.0,0.3608]
[1729001998977,0.075542,67086.0,67085.0,0.3618]
[1729001999173,0.001,67086.0,67085.0,0.3618]
[1729001999380,0.075542,67086.0,67085.0,0.3618]
[1729001999778,0.075542,67086.0,67085.0,0.001]
[1729001999976,0.436342,67086.0,67085.0,0.001]
[1729002000375,0.475542,67086.0,67085.0,0.001]
[1729002000685,0.3608,67100.0,67091.0,0.074536]
[1729002000686,0.074531,67096.0,67091.0,0.074536]
[1729002000875,0.3608,67100.0,67091.0,0.3608]
[1729002001079,0.435327,67100.0,67096.0,0.074531]
[1729002001683,0.435327,67100.0,67091.0,0.3608]
[1729002001684,0.3608,67100.0,67091.0,0.3608]
[1729002001873,0.074542,67086.0,67085.0,0.3618]
[1729002002080,0.074542,67086.0,67085.0,0.3608]
[1729002002487,0.074553,67076.0,67075.0,0.37182255]
[1729002002784,0.3608,67092.0,67075.0,0.37182255]
[1729002002785,0.074547,67082.0,67076.0,0.074552]
[1729002002981,0.074547,67082.0,67077.0,0.074552]
[1729002003184,0.474538,67090.0,67076.0,0.074553]
[1729002003482,0.3608,67092.0,67075.0,0.3608]
[1729002003483,0.074553,67076.0,67075.0,0.3608]
[1729002003888,0.074549,67080.0,67075.0,0.3608]
[1729002004184,0.074533,67095.0,67079.0,0.3608]
[1729002004390,0.26,67092.0,67079.0,0.435349]
[1729002004574,0.074547,67081.0,67080.0,0.2233861]
[1729002004887,0.074549,67080.0,67079.0,0.3608]
[1729002005088,0.334549,67080.0,67079.0,0.3608]
[1729002005382,0.334549,67080.0,67075.0,0.001]
[1729002005383,0.074553,67076.0,67075.0,0.001]
[1729002005582,0.26,67076.0,67073.0,0.3608]
[1729002005882,0.3608,67082.0,67073.0,0.3608]
[1729002006088,0.6208,67088.0,67077.0,0.26]
[1729002006380,0.6208,67088.0,67073.0,0.435356]
[1729002006381,0.074555,67074.0,67073.0,0.3608]
[1729002006583,0.074554,67075.0,67073.0,0.3608]
[1729002006981,0.3608,67088.0,67074.0,0.074555]
[1729002006982,0.07455,67079.0,67074.0,0.074555]
[1729002007173,0.074555,67074.0,67073.0,0.3608]
[1729002008084,0.3608,67088.0,67075.0,0.074554]
[1729002008283,0.435327,67100.0,67080.0,0.3608]
[1729002008284,0.26,67095.0,67080.0,0.3608]
[1729002008485,0.26,67095.0,67087.0,0.3608]
[1729002008687,0.435327,67100.0,67087.0,0.3608]
[1729002008688,0.07454,67088.0,67087.0,0.3608]
[1729002008885,0.26,67090.0,67081.0,0.3608]
[1729002008886,0.074547,67082.0,67081.0,0.3608]
[1729002009094,0.074547,67082.0,67078.0,0.22499287]
[1729002009095,0.334547,67082.0,67075.0,0.3608]
[1729002009385,0.334553,67076.0,67075.0,0.3608]
[1729002010678,0.26,67076.0,67075.0,0.3608]
[1729002010873,0.26,67076.0,67075.0,0.3618]
[1729002011074,0.334548,67081.0,67075.0,0.3618]
[1729002011278,0.334548,67081.0,67077.0,0.074552]
[1729002011484,0.074553,67076.0,67075.0,0.3618]
[1729002011684,0.26,67076.0,67075.0,0.437354]
[1729002011981,0.26,67076.0,67075.0,0.3628]
[1729002012182,0.26,67086.0,67078.0,0.074551]
[1729002012682,0.074548,67081.0,67078.0,0.074551]
[1729002012989,0.07455,67079.0,67078.0,0.074551]
[1729002013196,0.07455,67079.0,67077.0,0.002]
[1729002013197,0.26,67081.0,67077.0,0.002]
[1729002013380,0.07455,67079.0,67077.0,0.001]
[1729002013684,0.07455,67079.0,67078.0,0.001]
[1729002014182,0.074553,67077.0,67075.0,0.3608]
[1729002014388,0.26,67081.0,67075.0,0.3618]
[1729002014583,0.074553,67076.0,67075.0,0.3618]
[1729002014985,0.074553,67076.0,67075.0,0.001]
[1729002015176,0.074554,67075.0,67074.0,5.449e-05]
[1729002015889,0.3608,67091.0,67075.0,0.001]
[1729002016085,0.3608,67091.0,67080.0,0.3608]
[1729002016277,0.074546,67083.0,67082.0,0.074546]
[1729002016687,0.074541,67087.0,67086.0,0.07454]
[1729002017091,0.074546,67083.0,67081.0,0.074547]
[1729002017477,0.074546,67083.0,67082.0,0.074546]
[1729002017683,0.074542,67087.0,67086.0,0.074542]
[1729002017886,0.074541,67088.0,67086.0,0.435341]
[1729002018092,0.074541,67087.0,67086.0,0.074541]
[1729002018384,0.26,67091.0,67088.0,0.074539]
[1729002018576,0.074539,67089.0,67088.0,0.074539]
[1729002019190,0.08545537,67102.0,67087.0,0.3608]
[1729002019191,0.27093137,67102.0,67087.0,0.3608]
[1729002019492,0.27093137,67102.0,67096.0,0.07453]
[1729002019690,0.26,67097.0,67096.0,0.07453]
[1729002019891,0.3608,67105.0,67100.0,0.074524]
[1729002020079,0.1903,67117.0,67107.0,0.074518]
[1729002020080,0.26,67117.0,67107.0,0.074518]
[1729002020284,0.26,67117.0,67100.0,0.3608]
[1729002020285,0.074522,67104.0,67103.0,0.11736228]
[1729002020587,0.074512,67113.0,67112.0,0.074513]
[1729002020790,0.074512,67113.0,67112.0,0.11764185]
[1729002021088,0.334512,67113.0,67112.0,0.0431238]
[1729002021288,0.26,67113.0,67109.0,0.3608]
[1729002021489,0.334512,67113.0,67112.0,0.074513]
[1729002021693,0.26,67122.0,67112.0,0.13201713]
[1729002021895,0.074506,67118.0,67117.0,0.074507]
[1729002022286,0.074509,67116.0,67113.0,0.13201613]
[1729002022490,0.26,67122.0,67117.0,0.074507]
[1729002022491,0.074506,67118.0,67117.0,0.074507]
[1729002022689,0.074504,67121.0,67116.0,0.05750513]
[1729002022992,0.074498,67126.0,67125.0,0.074499]
[1729002023189,0.3608,67133.0,67123.0,0.3608]
[1729002023384,0.074493,67130.0,67123.0,0.3608]
[1729002023586,0.3608,67133.0,67124.0,0.22483508]
[1729002023795,0.074497,67127.0,67124.0,0.29933408]
[1729002023991,0.3608,67133.0,67124.0,0.22483508]
[1729002024188,0.3608,67133.0,67128.0,0.074494]
[1729002024189,0.074492,67131.0,67128.0,0.074494]
[1729002024586,0.001,67130.0,67123.0,0.3608]
[1729002024786,0.074496,67128.0,67124.0,0.1956]
[1729002024993,0.001,67130.0,67125.0,0.22228961]
[1729002025197,0.001,67130.0,67124.0,0.49238861]
[1729002025391,0.001,67130.0,67126.0,0.074497]
[1729002025892,0.001,67130.0,67127.0,0.22324015]
[1729002026287,0.001,67130.0,67129.0,0.6208]
[1729002026488,0.074484,67138.0,67131.0,0.074491]
[1729002026694,0.074484,67138.0,67137.0,0.3608]
[1729002027089,0.074484,67138.0,67137.0,0.58568821]
[1729002027690,0.074484,67138.0,67137.0,0.59681015]
[1729002027896,0.081484,67138.0,67137.0,0.59681015]
[1729002028194,0.081484,67138.0,67137.0,0.3608]
[1729002028398,0.087484,67138.0,67137.0,0.3618]
[1729002029492,0.087484,67138.0,67137.0,0.3758]
[1729002029992,0.087484,67138.0,67137.0,0.015]
[1729002030896,0.075484,67138.0,67137.0,0.028]
[1729002031100,0.075484,67138.0,67137.0,0.014]
[1729002031988,0.436284,67138.0,67137.0,0.028]
[1729002032189,0.436284,67138.0,67120.0,0.01093381]
[1729002032190,0.074486,67137.0,67120.0,0.01093381]
[1729002032390,0.26,67134.0,67121.0,0.26]
[1729002032695,0.36392001,67138.0,67123.0,0.22456081]
[1729002032696,0.0745,67124.0,67123.0,0.22456081]
[1729002032896,0.0745,67124.0,67120.0,0.22456081]
[1729002033195,0.3608,67130.0,67119.0,0.3608]
[1729002033196,0.26,67129.0,67119.0,0.3608]
[1729002033399,0.074496,67128.0,67120.0,0.074504]
[1729002033605,0.3608,67130.0,67122.0,0.26]
[1729002033606,0.435293,67130.0,67122.0,0.26]
[1729002033911,0.3608,67130.0,67126.0,0.074497]
[1729002034093,0.3608,67130.0,67123.0,0.22417539]
[1729002034299,0.07451,67115.0,67113.0,0.3608]
[1729002034602,0.07451,67115.0,67092.0,0.3608]
[1729002034603,0.074534,67093.0,67092.0,0.3608]
[1729002034998,0.074534,67093.0,67092.0,1.63832218]
[1729002035199,0.074529,67098.0,67092.0,1.9374598]
[1729002035397,0.3608,67109.0,67097.0,0.26]
[1729002035595,0.3608,67121.0,67097.0,0.26]
[1729002035596,0.26,67110.0,67097.0,0.26]
[1729002035805,0.074528,67099.0,67098.0,0.22250235]
[1729002035999,0.26,67101.0,67092.0,0.3608]
[1729002036200,0.074534,67093.0,67092.0,0.3608]
[1729002036403,0.26,67105.0,67097.0,0.22386215]
[1729002036404,0.074529,67098.0,67097.0,0.22386215]
[1729002036605,0.26,67105.0,67095.0,0.074532]
[1729002036606,0.074524,67103.0,67095.0,0.074532]
[1729002037007,0.074524,67103.0,67096.0,0.22386215]
[1729002037301,0.074529,67098.0,67096.0,0.22386215]
[1729002037506,0.07453,67097.0,67096.0,0.22386215]
[1729002037804,0.3608,67109.0,67096.0,0.22386215]
[1729002037805,0.3608,67110.0,67097.0,0.44712]
[1729002038105,0.074522,67105.0,67098.0,0.22207892]
[1729002038403,0.074527,67099.0,67098.0,0.22207892]
[1729002038608,0.26,67101.0,67097.0,0.0120141]
[1729002038609,0.074529,67098.0,67097.0,0.0120141]
[1729002038799,0.435324,67103.0,67098.0,0.22229814]
[1729002039209,0.3608,67103.0,67098.0,0.011]
[1729002039805,0.3608,67103.0,67099.0,0.22385876]
[1729002040110,0.074526,67100.0,67099.0,0.22385876]
[1729002040404,0.3608,67103.0,67099.0,0.22385876]
[1729002040598,0.074519,67107.0,67101.0,0.334525]
[1729002040797,0.441316,67110.0,67103.0,0.074522]
[1729002041006,0.435316,67110.0,67104.0,0.074522]
[1729002041204,0.435316,67110.0,67106.0,0.07452]
[1729002041205,0.3608,67110.0,67106.0,0.07452]
[1729002041405,0.3608,67110.0,67101.0,0.26]
[1729002041623,0.074505,67120.0,67107.0,0.58298834]
[1729002041815,0.074505,67120.0,67116.0,0.074508]
[1729002042105,0.074495,67128.0,67119.0,0.26]
[1729002042300,0.074492,67131.0,67125.0,0.334498]
[1729002042498,0.6208,67142.0,67130.0,0.26]
[1729002042699,0.3608,67142.0,67134.0,0.26]
[1729002043100,0.074484,67138.0,67134.0,0.26]
[1729002043410,0.3608,67142.0,67126.0,0.00732333]
[1729002043411,0.3608,67136.0,67126.0,0.00732333]
[1729002043602,0.3608,67142.0,67105.0,0.05750513]
[1729002043603,0.695296,67127.0,67105.0,0.05750513]